bitfinex-derivatives/quotes_ETHF0:USTF0_20230902
["timestamp","ask_amount","ask_price","bid_price","bid_amount"]
[1693653628824,0.06525207,1635.2,1635.1,14.67105648]
[1693653630725,0.06525207,1635.2,1635.1,19.46289648]
[1693653632430,0.06525207,1635.2,1635.1,17.16885648]
[1693653632634,2.35915207,1635.2,1635.1,17.16885648]
[1693653633530,13.47078606,1635.2,1635.1,17.16885648]
[1693653634826,13.48998605,1635.2,1635.1,17.16885648]
[1693653635027,11.19608605,1635.2,1635.1,17.16885648]
[1693653635228,13.48998605,1635.2,1635.1,14.89892]
[1693653635828,11.19608605,1635.2,1635.1,14.89892]
[1693653636031,11.17688606,1635.2,1635.1,14.89892]
[1693653636529,11.19608605,1635.2,1635.1,14.89892]
[1693653639334,8.90218605,1635.2,1635.1,14.89892]
[1693653639532,8.88298606,1635.2,1635.1,14.89892]
[1693653639741,11.17688606,1635.2,1635.1,14.89892]
[1693653640936,8.88298606,1635.2,1635.1,14.89892]
[1693653641337,8.88298606,1635.2,1635.1,17.19296]
[1693653641637,8.88298606,1635.2,1635.1,14.89892]
[1693653641944,2.35915207,1635.2,1635.1,14.89892]
[1693653642443,0.06525207,1635.2,1635.1,14.89892]
[1693653643043,2.35915207,1635.2,1635.1,14.89892]
[1693653644340,0.06525207,1635.2,1635.1,14.89892]
[1693653648452,8.88298606,1635.2,1635.1,14.89892]
[1693653648951,8.82178606,1635.2,1635.1,14.89892]
[1693653656847,0.00405207,1635.2,1635.1,14.89892]
[1693653662465,8.82178606,1635.2,1635.1,14.89892]
[1693653664361,0.00405207,1635.2,1635.1,14.89892]
[1693653667059,4.67225206,1635.2,1635.1,14.89892]
[1693653668061,4.67225206,1635.2,1635.1,10.10708]
[1693653668761,4.67225206,1635.2,1635.1,12.40112]
[1693653670367,2.37835206,1635.2,1635.1,12.40112]
[1693653671370,0.06525207,1635.2,1635.1,12.40112]
[1693653672366,0.06525207,1635.2,1635.1,14.69516]
[1693653677876,0.08445206,1635.2,1635.1,14.69516]
[1693653678475,0.06525207,1635.2,1635.1,14.69516]
[1693653683678,0.06525207,1635.2,1635.1,17.28736]
[1693653686682,8.89288852,1635.2,1635.1,17.28736]
[1693653693588,8.91208851,1635.2,1635.1,17.28736]
[1693653694685,8.89288852,1635.2,1635.1,17.28736]
[1693653695288,8.91208851,1635.2,1635.1,17.28736]
[1693653695787,8.89288852,1635.2,1635.1,17.28736]
[1693653696689,8.91208851,1635.2,1635.1,17.28736]
[1693653700186,8.89288852,1635.2,1635.1,17.28736]
[1693653704200,8.83168852,1635.2,1635.1,17.28736]
[1693653705296,8.82763645,1635.3,1635.1,17.28736]
[1693653705498,8.82763645,1635.3,1635.2,10.6561]
[1693653705798,2.4527,1635.6,1635.2,10.6561]
[1693653705799,0.0612,1635.6,1635.2,19.8317]
[1693653705994,4.64794,1635.6,1635.5,6.88044]
[1693653706301,5.14671618,1635.6,1635.5,12.01754]
[1693653709102,0.55997618,1635.6,1635.5,12.01754]
[1693653709803,5.14665618,1635.6,1635.5,12.01754]
[1693653710304,2.85331618,1635.6,1635.5,12.01754]
[1693653710498,5.14665618,1635.6,1635.5,12.01754]
[1693653710798,2.85331618,1635.6,1635.5,12.01754]
[1693653711004,5.14665618,1635.6,1635.5,12.01754]
[1693653711403,2.85331618,1635.6,1635.5,12.01754]
[1693653711804,5.14665618,1635.6,1635.5,12.01754]
[1693653712008,5.14665618,1635.6,1635.5,17.53654]
[1693653712799,2.85331618,1635.6,1635.5,17.53654]
[1693653713105,5.14665618,1635.6,1635.5,17.53654]
[1693653713407,5.15165484,1635.6,1635.5,17.53654]
[1693653713696,13.96659122,1635.6,1635.5,17.53654]
[1693653715609,13.96524211,1635.6,1635.5,17.53654]
[1693653716505,5.15165484,1635.6,1635.5,17.53654]
[1693653719909,5.17085483,1635.6,1635.5,15.26660352]
[1693653720808,5.15165484,1635.6,1635.5,15.26660352]
[1693653739025,13.96524211,1635.6,1635.5,15.26660352]
[1693653746426,5.15165484,1635.6,1635.5,15.26660352]
[1693653747423,0.50377484,1635.6,1635.5,15.26660352]
[1693653747628,0.00499866,1635.6,1635.5,17.56008352]
[1693653748026,0.00499866,1635.6,1635.5,20.14298352]
[1693653748634,8.81358727,1635.7,1635.5,20.14298352]
[1693653748935,11.10679727,1635.7,1635.6,5.519]
[1693653749235,8.81358727,1635.7,1635.6,14.66895648]
[1693653749436,8.8185937,1635.7,1635.6,19.43221648]
[1693653750529,11.60443237,1635.7,1635.6,19.43221648]
[1693653750729,13.89765237,1635.7,1635.6,17.13885648]
[1693653750928,9.31121237,1635.7,1635.6,17.13885648]
[1693653751137,9.31121237,1635.7,1635.6,19.43221648]
[1693653752334,0.4976251,1635.7,1635.6,19.43221648]
[1693653754027,9.31121237,1635.7,1635.6,19.43221648]
[1693653760730,0.4976251,1635.7,1635.6,19.43221648]
[1693653770241,0.4976251,1635.7,1635.6,19.92516706]
[1693653776647,0.00500643,1635.7,1635.6,19.92516706]
[1693653799672,0.02420642,1635.7,1635.6,17.45525706]
[1693653802278,0.00500643,1635.7,1635.6,17.45525706]
[1693653811673,0.00500643,1635.7,1635.6,20.03205706]
[1693653820596,0.02420642,1635.7,1635.6,17.45525706]
[1693653821090,0.00500643,1635.7,1635.6,17.45525706]
[1693653821488,0.02420642,1635.7,1635.6,17.45525706]
[1693653822394,0.00500643,1635.7,1635.6,17.45525706]
[1693653827093,2.37850642,1635.7,1635.6,12.89197058]
[1693653827296,4.67170642,1635.7,1635.6,12.39902]
[1693653827701,6.96491642,1635.7,1635.6,10.10568]
[1693653828104,6.96491642,1635.7,1635.6,7.81234]
[1693653828703,6.96491642,1635.7,1635.6,10.10568]
[1693653829102,15.77850369,1635.7,1635.6,10.10568]
[1693653831001,15.77850369,1635.7,1635.6,12.39902]
[1693653831894,15.77850369,1635.7,1635.6,6.88002]
[1693653832797,6.96491642,1635.7,1635.6,6.88002]
[1693653832998,4.67170642,1635.7,1635.6,6.88002]
[1693653836603,4.65250643,1635.7,1635.6,9.74718352]
[1693653837108,4.67170642,1635.7,1635.6,9.74718352]
[1693653838709,4.67170642,1635.7,1635.6,6.88002]
[1693653841113,2.37850642,1635.7,1635.6,6.88002]
[1693653841413,2.37850642,1635.7,1635.6,9.74718352]
[1693653842006,2.37850642,1635.7,1635.6,15.26618352]
[1693653842306,4.67171642,1635.7,1635.6,15.26618352]
[1693653845209,2.37850642,1635.7,1635.6,15.26618352]
[1693653846118,4.67170642,1635.7,1635.6,15.26618352]
[1693653846415,2.37850642,1635.7,1635.6,15.26618352]
[1693653849310,4.67171642,1635.7,1635.6,12.39902]
[1693653851516,6.96492642,1635.7,1635.6,10.10568]
[1693653852315,6.90382642,1635.7,1635.6,10.10568]
[1693653855118,6.90382642,1635.7,1635.6,12.39905]
[1693653855311,7.17382642,1635.7,1635.6,10.10568]
[1693653861217,0.27500643,1635.7,1635.6,15.26621352]
[1693653861423,0.27500643,1635.7,1635.6,17.55958352]
[1693653861616,0.27500643,1635.7,1635.6,20.13768352]
[1693653862420,2.56820643,1635.7,1635.6,20.13768352]
[1693653863019,4.86140643,1635.7,1635.6,20.13768352]
[1693653863219,2.56820643,1635.7,1635.6,20.13768352]
[1693653863711,0.27500643,1635.7,1635.6,20.13768352]
[1693653866224,2.56821643,1635.7,1635.6,20.13768352]
[1693653866419,0.27500643,1635.7,1635.6,20.13768352]
[1693653867421,0.27500643,1635.7,1635.6,10.96426352]
[1693653870228,0.00500643,1635.7,1635.6,10.96426352]
[1693653871527,9.291617,1635.9,1635.6,10.96426352]
[1693653871727,9.291617,1635.9,1635.8,5.519]
[1693653871928,9.291617,1635.9,1635.8,8.38616352]
[1693653872128,9.31081699,1635.9,1635.8,10.91116352]
[1693653872427,8.81839631,1635.9,1635.8,10.91116352]
[1693653872829,8.8375963,1635.9,1635.8,10.91116352]
[1693653874324,0.02400903,1635.9,1635.8,10.91116352]
[1693653874524,0.00480904,1635.9,1635.8,10.91116352]
[1693653874833,0.02400903,1635.9,1635.8,10.91116352]
[1693653875430,0.00480904,1635.9,1635.8,10.91116352]
[1693653875625,0.00480904,1635.9,1635.8,8.044]
[1693653875831,0.02400903,1635.9,1635.8,8.044]
[1693653876233,0.02400903,1635.9,1635.8,10.91116352]
[1693653878034,8.8375963,1635.9,1635.8,10.91116352]
[1693653878534,8.81839631,1635.9,1635.8,10.91116352]
[1693653879034,0.00480904,1635.9,1635.8,10.91116352]
[1693653881530,17.39175683,1636.1,1635.8,10.91116352]
[1693653881733,8.81358727,1636.0,1635.8,10.91116352]
[1693653882037,8.81358727,1636.0,1635.9,5.519]
[1693653882239,8.83278726,1636.0,1635.9,5.519]
[1693653882439,8.83760937,1636.0,1635.9,5.519]
[1693653885534,8.81840938,1636.0,1635.9,5.519]
[1693653886235,8.83760937,1636.0,1635.9,5.519]
[1693653887041,0.00482211,1636.0,1635.9,7.78893648]
[1693653893750,0.0240221,1636.0,1635.9,7.78893648]
[1693653894149,0.00482211,1636.0,1635.9,7.78893648]
[1693653894645,0.0240221,1636.0,1635.9,7.78893648]
[1693653895045,0.00482211,1636.0,1635.9,7.78893648]
[1693653898158,0.00482211,1636.0,1635.9,16.96065648]
[1693653901360,0.00482211,1636.0,1635.9,19.42255648]
[1693653901855,0.00482211,1636.0,1635.9,13.90355648]
[1693653902055,0.00482211,1636.0,1635.9,19.42255648]
[1693653921670,2.29761211,1636.0,1635.9,19.42255648]
[1693653922077,0.00482211,1636.0,1635.9,19.42255648]
[1693653924683,4.6096021,1636.0,1635.9,6.87879]
[1693653924880,4.6096021,1636.0,1635.8,4.81796]
[1693653924881,14.7141821,1636.0,1635.8,4.81796]
[1693653925085,14.7141821,1636.0,1635.7,12.39845]
[1693653925377,14.7141821,1636.0,1635.7,12.3985]
[1693653925580,0.0611,1635.8,1635.7,10.10528]
[1693653925781,6.94034,1635.8,1635.7,12.3985]
[1693653926077,6.95953999,1635.8,1635.7,12.97244352]
[1693653926277,6.95953999,1635.8,1635.7,10.10528]
[1693653926483,6.96433109,1635.8,1635.7,12.3985]
[1693653929286,6.96433109,1635.8,1635.7,7.81211]
[1693653930078,6.96433109,1635.8,1635.7,10.10534]
[1693653931788,6.96433109,1635.8,1635.7,12.39857]
[1693653931989,6.96433109,1635.8,1635.7,6.87957]
[1693653932287,6.96433109,1635.8,1635.7,4.58634]
[1693653933088,6.96433109,1635.8,1635.7,6.87955]
[1693653934083,4.67125109,1635.8,1635.7,6.87955]
[1693653938091,4.67125109,1635.8,1635.7,9.74671352]
[1693653938291,4.67125109,1635.8,1635.7,12.03994352]
[1693653939087,4.6520511,1635.8,1635.7,12.03994352]
[1693653939987,4.67125109,1635.8,1635.7,12.03994352]
[1693653941396,4.67125109,1635.8,1635.7,9.17278]
[1693653942095,4.67125109,1635.8,1635.7,12.03994352]
[1693653942588,4.67125109,1635.8,1635.7,9.17278]
[1693653943193,4.67125109,1635.8,1635.7,12.03994352]
[1693653943693,4.67125109,1635.8,1635.7,9.17278]
[1693653945692,4.67125109,1635.8,1635.7,12.03994352]
[1693653949598,4.67125109,1635.8,1635.7,9.17278]
[1693653952303,4.67125109,1635.8,1635.7,11.79878]
[1693653952604,4.67125109,1635.8,1635.7,14.66594352]
[1693653956002,4.67125109,1635.8,1635.7,11.79878]
[1693653956201,6.96433109,1635.8,1635.7,9.50555]
[1693653970117,6.96433109,1635.8,1635.7,7.21232]
[1693653972011,15.78658428,1635.8,1635.7,7.21232]
[1693653973219,15.78658428,1635.8,1635.7,9.50555]
[1693653979418,15.78658428,1635.8,1635.7,7.21232]
[1693653981223,18.07966428,1635.8,1635.7,4.91911]
[1693653981916,23.59866428,1635.8,1635.7,4.91911]
[1693653987324,14.77641109,1635.8,1635.7,4.91911]
[1693653989524,14.77641109,1635.8,1635.7,7.78627352]
[1693653990526,14.77641109,1635.8,1635.7,10.07948352]
[1693653996932,14.7572111,1635.8,1635.7,10.07948352]
[1693653997428,1.19818712,1635.9,1635.7,10.07948352]
[1693653997726,2.29252,1636.2,1635.9,9.17172]
[1693653997925,4.58503,1636.2,1636.1,5.519]
[1693653998232,4.58503,1636.2,1636.1,14.66685648]
[1693653998525,4.58992617,1636.2,1636.1,14.66685648]
[1693654002524,6.88243617,1636.2,1636.1,14.66685648]
[1693654002732,9.74959969,1636.2,1636.1,12.39692]
[1693654003934,6.88243617,1636.2,1636.1,12.39692]
[1693654007138,9.74959969,1636.2,1636.1,12.39692]
[1693654007330,9.74959969,1636.2,1636.0,7.00735648]
[1693654007331,12.04210969,1636.2,1636.0,10.25642]
[1693654007535,1.19818712,1636.1,1636.0,12.54914]
[1693654007734,8.07610712,1636.1,1636.0,12.54914]
[1693654007931,8.07610712,1636.1,1636.0,14.84192]
[1693654008239,8.07610712,1636.1,1636.0,12.5492]
[1693654008435,8.0810006,1636.1,1636.0,12.5492]
[1693654008642,8.0810006,1636.1,1636.0,14.84198]
[1693654011837,8.0810006,1636.1,1636.0,9.32298]
[1693654013136,5.7883606,1636.1,1636.0,9.32298]
[1693654040068,5.7883606,1636.1,1636.0,6.87828]
[1693654040262,2.86716352,1636.0,1635.7,0.48418721]
[1693654040462,2.86716352,1636.0,1635.0,11.74199807]
[1693654040463,5.5801,1635.8,1635.0,11.74199807]
[1693654040656,5.95137659,1635.8,1635.0,0.244]
[1693654040858,5.519,1635.2,1635.0,0.244]
[1693654041060,2.86716352,1635.1,1635.0,4.83224]
[1693654041370,2.86716352,1635.1,1635.0,4.58824]
[1693654041371,4.12645064,1635.1,1635.0,4.58824]
[1693654041561,4.12645064,1635.1,1634.9,8.28225504]
[1693654041562,0.0611,1635.0,1634.9,8.28225504]
[1693654042065,4.6495,1635.0,1634.9,7.78893648]
[1693654042261,4.58821,1635.1,1634.9,12.37761648]
[1693654042463,2.29395,1635.2,1635.0,5.519]
[1693654042662,2.29395,1635.2,1635.1,2.29406]
[1693654042963,8.65325064,1635.2,1635.0,10.10724]
[1693654044560,0.00463497,1635.1,1635.0,10.10724]
[1693654045368,0.00463497,1635.1,1635.0,7.81312]
[1693654045667,13.30242064,1635.2,1634.8,0.48916741]
[1693654045867,5.5801,1635.0,1634.7,2.3943]
[1693654046170,6.94395,1635.0,1634.8,8.33245871]
[1693654046364,8.14213712,1635.0,1634.8,5.519]
[1693654046570,9.75018352,1634.9,1634.8,5.519]
[1693654048768,6.88302,1634.9,1634.8,5.519]
[1693654049274,9.75018352,1634.9,1634.8,5.519]
[1693654051169,6.88302,1634.9,1634.8,5.519]
[1693654051575,9.75018352,1634.9,1634.8,5.519]
[1693654052064,6.88302,1634.9,1634.8,5.519]
[1693654053076,9.75018352,1634.9,1634.8,5.519]
[1693654058684,12.04452352,1634.9,1634.8,5.519]
[1693654059483,12.04861721,1634.9,1634.8,5.519]
[1693654060085,12.04861721,1634.9,1634.7,7.9133]
[1693654060384,1.25928712,1634.8,1634.7,7.9133]
[1693654060685,8.14269712,1634.8,1634.7,7.9133]
[1693654067088,6.94451,1634.8,1634.7,7.9133]
[1693654072985,6.94451,1634.8,1634.7,12.50256]
[1693654073688,6.94451,1634.8,1634.7,10.20793]
[1693654074492,6.94842134,1634.8,1634.7,10.20793]
[1693654076389,6.94842134,1634.8,1634.7,7.9133]
[1693654076582,9.81558486,1634.8,1634.7,7.9133]
[1693654076779,6.94842134,1634.8,1634.7,7.9133]
[1693654077188,6.94842134,1634.8,1634.7,10.20793]
[1693654080292,9.81558486,1634.8,1634.7,10.20793]
[1693654080794,9.81558486,1634.8,1634.7,7.9133]
[1693654083690,17.62907486,1634.8,1634.6,3.02548869]
[1693654083881,6.94551,1634.6,1634.5,5.519]
[1693654084088,9.81267352,1634.6,1634.5,5.519]
[1693654085797,9.81267352,1634.6,1634.5,10.18294313]
[1693654086688,9.81267352,1634.6,1634.5,10.18294252]
[1693654088203,12.10744352,1634.6,1634.5,10.18294252]
[1693654089494,12.11117108,1634.6,1634.5,10.18294252]
[1693654089697,12.11117108,1634.6,1634.5,12.47783252]
[1693654089900,12.11117108,1634.6,1634.5,10.18294252]
[1693654090798,12.11117108,1634.6,1634.5,7.12276948]
[1693654090998,12.11117108,1634.6,1634.5,9.41765948]
[1693654091198,9.81640108,1634.6,1634.5,9.41765948]
[1693654091500,9.81640108,1634.6,1634.5,7.81389]
[1693654096602,9.81640108,1634.6,1634.5,5.519]
[1693654099095,9.81640108,1634.6,1634.5,7.81391]
[1693654101007,6.94923756,1634.6,1634.5,7.81391]
[1693654102005,2.29849756,1634.6,1634.5,10.10882]
[1693654102216,0.00372756,1634.6,1634.5,12.40373]
[1693654102507,4.58954,1634.6,1634.5,12.40373]
[1693654103207,4.58954,1634.6,1634.5,10.10882]
[1693654104608,9.75520108,1634.6,1634.5,10.10882]
[1693654104815,9.75520108,1634.6,1634.5,7.81391]
[1693654111207,9.75520108,1634.6,1634.5,2.29491]
[1693654112720,9.75520108,1634.6,1634.4,17.80680685]
[1693654114713,9.75520108,1634.6,1634.4,20.10185685]
[1693654116418,9.75520108,1634.6,1634.4,17.80680685]
[1693654117927,9.75520108,1634.6,1634.4,15.53687037]
[1693654118322,2.35574,1634.8,1634.5,5.519]
[1693654118525,4.58931,1634.7,1634.6,9.15424648]
[1693654118824,6.88399,1634.7,1634.6,17.58247648]
[1693654119021,4.58931,1634.7,1634.6,17.58247648]
[1693654119425,6.88399,1634.7,1634.6,17.58247648]
[1693654119623,6.88760397,1634.7,1634.6,17.58247648]
[1693654119824,6.88760397,1634.7,1634.6,15.28770648]
[1693654121122,6.88760397,1634.7,1634.6,12.99293648]
[1693654121323,12.04944749,1634.7,1634.6,12.99293648]
[1693654121529,9.18228397,1634.7,1634.6,12.99293648]
[1693654121725,6.88760397,1634.7,1634.6,12.99293648]
[1693654128637,9.18228397,1634.7,1634.6,12.99293648]
[1693654129048,12.04944749,1634.7,1634.6,12.99293648]
[1693654129344,12.04944749,1634.7,1634.6,10.723]
[1693654131841,9.18228397,1634.7,1634.6,10.723]
[1693654132647,12.04944749,1634.7,1634.6,10.723]
[1693654132844,12.11064749,1634.7,1634.6,5.204]
[1693654133050,0.0612,1634.6,1634.5,8.41290955]
[1693654133348,10.43846712,1634.6,1634.5,8.41290955]
[1693654134645,10.44206344,1634.6,1634.5,8.41290955]
[1693654134947,10.44206344,1634.6,1634.5,7.8891]
[1693654136251,8.14729344,1634.6,1634.5,10.18401]
[1693654136451,8.14729344,1634.6,1634.5,7.8891]
[1693654137353,8.14729344,1634.6,1634.5,10.18401]
[1693654137954,8.14729344,1634.6,1634.5,7.8891]
[1693654140754,8.14729344,1634.6,1634.5,5.519]
[1693654140954,8.14729344,1634.6,1634.5,10.40761]
[1693654141556,8.14729344,1634.6,1634.5,12.70252]
[1693654152756,8.14729344,1634.6,1634.5,10.40761]
[1693654159964,8.14729344,1634.6,1634.5,12.70252]
[1693654160355,0.06479632,1634.6,1634.5,14.99743]
[1693654160861,4.65433632,1634.6,1634.5,14.99743]
[1693654165468,4.65433632,1634.6,1634.5,12.70252]
[1693654167265,7.52149984,1634.6,1634.5,12.70252]
[1693654174771,4.65433632,1634.6,1634.5,12.70252]
[1693654182572,7.52149984,1634.6,1634.5,12.70252]
[1693654183478,9.81626984,1634.6,1634.5,12.70252]
[1693654184076,26.44902848,1634.8,1634.5,17.29234]
[1693654184283,8.82259652,1634.8,1634.7,11.038]
[1693654184580,0.00349101,1634.8,1634.7,20.74091534]
[1693654184769,0.00349101,1634.8,1634.7,23.27051534]
[1693654185580,15.76657652,1635.0,1634.7,23.27051534]
[1693654185777,15.76657652,1635.0,1634.9,5.519]
[1693654185979,36.25883977,1635.0,1634.9,10.10766]
[1693654186479,18.63374004,1635.0,1634.9,12.62676]
[1693654187179,15.76657652,1635.0,1634.9,12.62676]
[1693654187575,15.76657652,1635.0,1634.9,14.9211]
[1693654188171,24.56907973,1635.0,1634.9,14.9211]
[1693654188578,6.94398,1635.0,1634.9,14.9211]
[1693654192482,6.94745228,1635.0,1634.9,14.9211]
[1693654195487,9.8146158,1635.0,1634.9,14.9211]
[1693654197286,6.94745228,1635.0,1634.9,14.9211]
[1693654198385,9.8146158,1635.0,1634.9,14.9211]
[1693654203089,6.94745228,1635.0,1634.9,14.9211]
[1693654203389,24.57185454,1635.0,1634.9,14.9211]
[1693654203593,6.94745228,1635.0,1634.9,14.9211]
[1693654203994,9.8146158,1635.0,1634.9,14.9211]
[1693654206291,4.59197228,1635.0,1634.9,14.9211]
[1693654206496,2.29770228,1635.0,1634.9,14.9211]
[1693654206696,4.59199228,1635.0,1634.9,14.9211]
[1693654207098,6.88628228,1635.0,1634.9,14.9211]
[1693654210201,9.7534458,1635.0,1634.9,14.9211]
[1693654210800,6.88628228,1635.0,1634.9,14.9211]
[1693654211002,24.51095303,1635.0,1634.9,14.9211]
[1693654211295,6.88628228,1635.0,1634.9,14.9211]
[1693654211999,9.7534458,1635.0,1634.9,14.9211]
[1693654212800,6.88628228,1635.0,1634.9,14.9211]
[1693654213000,9.7534458,1635.0,1634.9,14.9211]
[1693654213500,6.88628228,1635.0,1634.9,14.9211]
[1693654215995,0.00347228,1635.0,1634.9,17.21544]
[1693654216293,8.81322172,1635.2,1635.0,2.26993648]
[1693654216492,8.81322172,1635.2,1635.1,14.69524]
[1693654216698,2.29392,1635.2,1635.1,14.69524]
[1693654216896,2.29392,1635.2,1635.1,17.07724]
[1693654217098,7.45500352,1635.2,1635.1,17.07724]
[1693654217300,9.74892352,1635.2,1635.1,12.48912]
[1693654217500,9.81012352,1635.2,1635.1,12.48912]
[1693654217802,12.10404352,1635.2,1635.1,7.901]
[1693654218702,12.10404352,1635.2,1635.1,10.19506]
[1693654219404,12.10404352,1635.2,1635.1,12.48912]
[1693654220702,12.10404352,1635.2,1635.1,10.19506]
[1693654221701,12.10404352,1635.2,1635.1,12.48912]
[1693654221898,12.10404352,1635.2,1635.1,6.97012]
[1693654222102,12.10404352,1635.2,1635.1,4.67606]
[1693654222901,12.10404352,1635.2,1635.1,2.382]
[1693654223105,12.10404352,1635.2,1635.1,4.67606]
[1693654223799,12.10404352,1635.2,1635.1,6.97012]
[1693654224903,12.10404352,1635.2,1635.1,4.67606]
[1693654225099,12.10404352,1635.2,1635.1,2.382]
[1693654225499,9.23688,1635.2,1635.1,4.67604]
[1693654226001,9.23688,1635.2,1635.1,6.97008]
[1693654229111,18.05010172,1635.2,1635.1,6.97008]
[1693654231404,20.91726524,1635.2,1635.1,6.97008]
[1693654233714,18.05010172,1635.2,1635.1,6.97008]
[1693654234013,18.05010172,1635.2,1635.1,9.26412]
[1693654234014,15.75618172,1635.2,1635.1,9.26412]
[1693654234915,6.94296,1635.2,1635.1,9.26412]
[1693654238718,9.81012352,1635.2,1635.1,9.26412]
[1693654238924,6.94296,1635.2,1635.1,9.26412]
[1693654242114,4.64904,1635.2,1635.1,17.07716]
[1693654242518,13.46226172,1635.2,1635.1,17.07716]
[1693654243420,4.64904,1635.2,1635.1,17.07716]
[1693654248922,11.10704172,1635.3,1635.1,17.07716]
[1693654249111,11.10700172,1635.3,1635.2,7.78893648]
[1693654249417,13.40078172,1635.3,1635.2,16.96453648]
[1693654249622,13.40078172,1635.3,1635.2,19.57863648]
[1693654250126,4.58756,1635.3,1635.2,19.57863648]
[1693654252916,11.10679172,1635.5,1635.2,19.57863648]
[1693654253116,11.10679172,1635.5,1635.4,10.10624]
[1693654253117,15.69375172,1635.5,1635.4,10.10624]
[1693654253325,20.85443524,1635.5,1635.4,10.10624]
[1693654255326,20.85443524,1635.5,1635.4,7.81262]
[1693654256124,20.85443524,1635.5,1635.4,2.29362]
[1693654256325,38.47568264,1635.5,1635.4,2.29362]
[1693654257320,38.47568264,1635.5,1635.3,5.519]
[1693654257526,29.66246092,1635.5,1635.3,7.81274]
[1693654257823,10.37266712,1635.4,1635.3,10.1065]
[1693654264723,19.1913506,1635.4,1635.3,10.1065]
[1693654268835,19.19445757,1635.4,1635.3,10.1065]
[1693654271539,36.81664995,1635.4,1635.3,10.1065]
[1693654272036,36.81664995,1635.4,1635.3,4.5875]
[1693654272330,19.19445757,1635.4,1635.3,4.5875]
[1693654272639,10.37577409,1635.4,1635.3,4.5875]
[1693654282541,10.87575266,1635.4,1635.3,4.5875]
[1693654283542,10.87575266,1635.4,1635.3,7.1466]
[1693654305156,10.87575266,1635.4,1635.3,4.85284]
[1693654305654,10.87575266,1635.4,1635.2,10.42692]
[1693654305858,12.10340352,1635.3,1635.2,2.6141]
[1693654306051,6.9429,1635.2,1635.1,7.9188]
[1693654306252,16.95832143,1635.2,1635.1,10.3378]
[1693654306653,19.25222143,1635.2,1635.1,10.3378]
[1693654306860,19.25530223,1635.2,1635.1,10.3378]
[1693654307963,19.25530223,1635.2,1635.1,12.63184]
[1693654308968,10.43806792,1635.2,1635.1,12.63184]
[1693654309165,28.06158616,1635.2,1635.1,12.63184]
[1693654309359,10.43806792,1635.2,1635.1,12.63184]
[1693654311567,19.25149648,1635.2,1635.1,12.63184]
[1693654311972,19.25149648,1635.2,1635.1,10.3378]
[1693654312174,19.25149648,1635.2,1635.1,12.63184]
[1693654312373,10.43806792,1635.2,1635.1,12.63184]
[1693654312572,36.87466294,1635.2,1635.1,12.63184]
[1693654313276,19.2511447,1635.2,1635.1,12.63184]
[1693654315077,19.2511447,1635.2,1635.1,14.92588]
[1693654317376,10.43806792,1635.2,1635.1,14.92588]
[1693654321480,9.2398808,1635.2,1635.1,14.92588]
[1693654324082,26.86313461,1635.2,1635.1,14.92588]
[1693654324284,9.2398808,1635.2,1635.1,14.92588]
[1693654324983,18.05295758,1635.2,1635.1,14.92588]
[1693654332387,9.2398808,1635.2,1635.1,14.92588]
[1693654339892,18.05295758,1635.2,1635.1,14.92588]
[1693654341790,18.05308422,1635.2,1635.1,14.92588]
[1693654345292,9.2398808,1635.2,1635.1,14.92588]
[1693654345497,18.05295498,1635.2,1635.1,14.92588]
[1693654351993,0.0612,1635.0,1634.7,4.58906]
[1693654352195,0.0612,1634.8,1634.7,10.10806]
[1693654352499,6.94461,1634.8,1634.7,10.10806]
[1693654352687,9.81177352,1634.8,1634.7,10.10806]
[1693654352998,12.10927797,1634.8,1634.7,10.10806]
[1693654354099,12.10927797,1634.8,1634.7,10.60069229]
[1693654354300,12.10927797,1634.8,1634.7,8.30614229]
[1693654358801,12.10927797,1634.8,1634.7,2.78714229]
[1693654359004,9.24211445,1634.8,1634.7,2.78714229]
[1693654359201,0.00303445,1634.8,1634.7,15.18997229]
[1693654359600,0.00303445,1634.8,1634.7,20.70897229]
[1693654371915,0.00303445,1634.8,1634.7,15.18997229]
[1693654377024,6.88241,1635.1,1634.8,2.26993648]
[1693654377326,6.88241,1635.1,1635.0,5.519]
[1693654377518,6.88241,1635.1,1635.0,12.40154]
[1693654377715,6.88241,1635.1,1635.0,14.67147648]
[1693654381533,6.88241,1635.1,1635.0,16.96566648]
[1693654384736,6.94361,1635.1,1635.0,17.44344207]
[1693654398453,9.81077352,1635.1,1635.0,17.44344207]
[1693654398955,6.94361,1635.1,1635.0,17.44344207]
[1693654399251,6.88241,1635.1,1635.0,17.44344207]
[1693654410359,4.58824,1635.1,1635.0,17.44344207]
[1693654410557,4.58771,1635.3,1635.0,17.44344207]
[1693654410858,4.58771,1635.3,1635.2,5.519]
[1693654411068,4.58771,1635.3,1635.2,14.69464]
[1693654411262,4.58771,1635.3,1635.2,16.96457648]
[1693654412457,22.21066025,1635.3,1635.2,16.96457648]
[1693654412858,4.58771,1635.3,1635.2,16.96457648]
[1693654415362,18.57056781,1635.4,1635.2,16.96457648]
[1693654415560,18.57046781,1635.4,1635.3,12.40031]
[1693654415858,20.86415781,1635.4,1635.3,12.40031]
[1693654416059,18.28485781,1635.4,1635.3,12.40031]
[1693654416460,35.90780806,1635.4,1635.3,12.40031]
[1693654417966,18.28485781,1635.4,1635.3,12.40031]
[1693654419567,18.28485781,1635.4,1635.3,15.02951]
[1693654420567,15.68265781,1635.4,1635.3,15.02951]
[1693654421269,15.68265781,1635.4,1635.3,14.69408]
[1693654421469,15.68265781,1635.4,1635.3,19.71478]
[1693654422072,6.881,1635.4,1635.3,19.71478]
[1693654427876,4.58731,1635.4,1635.3,19.71478]
[1693654429578,22.21026025,1635.4,1635.3,19.71478]
[1693654429972,4.58731,1635.4,1635.3,19.71478]
[1693654430374,22.21026025,1635.4,1635.3,19.71478]
[1693654431080,4.58731,1635.4,1635.3,19.71478]
[1693654433273,6.88093,1635.4,1635.3,19.71478]
[1693654434173,4.58724,1635.4,1635.3,19.71478]
[1693654436385,6.88086,1635.4,1635.3,19.71478]
[1693654436684,4.58724,1635.4,1635.3,19.71478]
[1693654439986,18.06954004,1635.5,1635.3,19.71478]
[1693654440191,35.69249029,1635.5,1635.4,7.78893648]
[1693654440379,18.06954004,1635.5,1635.4,14.66979648]
[1693654440584,15.68734004,1635.5,1635.4,14.66979648]
[1693654440882,15.69163327,1635.5,1635.4,14.66979648]
[1693654441892,15.69163327,1635.5,1635.4,16.96342648]